bitfinex/quotes_ETHUSD_20220310
["timestamp","ask_amount","ask_price","bid_price","bid_amount"]
[1646876203660,3.39129592,2713.4,2713.2,0.14099406]
[1646876203907,3.39129592,2713.4,2713.2,0.14456387]
[1646876203908,2.69129592,2713.4,2713.2,0.14456387]
[1646876204108,2.39129592,2713.4,2713.2,0.14456387]
[1646876204307,1.86129592,2713.4,2713.3,0.015604]
[1646876204507,1.86129592,2713.4,2713.3,0.6881954]
[1646876204911,1.88865919,2713.4,2713.3,0.05409458]
[1646876205112,1.88865919,2713.4,2713.3,0.07879522]
[1646876205313,2.18865919,2713.4,2713.3,0.07879522]
[1646876205515,1.88865919,2713.4,2713.3,0.07879522]
[1646876205818,1.88865919,2713.4,2713.3,2.27809656]
[1646876206013,1.88865919,2713.4,2713.3,1.60550516]
[1646876206213,1.88865919,2713.4,2713.3,2.29253856]
[1646876206418,1.88865919,2713.4,2713.3,1.61994716]
[1646876206815,1.88865919,2713.4,2713.3,2.52586533]
[1646876207113,1.88865919,2713.4,2713.3,2.89496533]
[1646876207560,1.88865919,2713.4,2713.3,1.98904716]
[1646876207761,0.007,2714.2,2714.1,0.55364203]
[1646876207961,2.05331128,2714.7,2714.1,0.55364203]
[1646876207962,0.55899419,2714.7,2714.1,0.55364203]
[1646876208164,0.55899419,2714.7,2714.2,1.54342494]
[1646876208365,0.55899419,2714.7,2714.3,1.52670994]
[1646876208662,0.05102865,2714.9,2714.3,1.52670994]
[1646876209162,1.76478534,2714.9,2714.3,1.52670994]
[1646876210166,3.73795618,2714.8,2714.3,1.52670994]
[1646876210370,1.09475023,2714.4,2714.2,0.016715]
[1646876210578,1.15894039,2714.4,2714.1,0.55364203]
[1646876210769,5.18894039,2714.4,2714.1,0.55364203]
[1646876210972,1.68894039,2714.4,2714.1,0.55364203]
[1646876211173,2.68894039,2714.4,2714.1,0.55191603]
[1646876211618,0.59419016,2714.4,2714.2,1.52651192]
[1646876211816,0.53,2714.4,2714.2,1.52651192]
[1646876212016,0.53,2714.4,2714.1,0.55191603]
[1646876212416,2.43662852,2714.4,2714.1,0.55191603]
[1646876213218,0.97532952,2714.3,2714.1,0.55191603]
[1646876214221,1.00995013,2714.3,2714.1,0.55191603]
[1646876216666,4.09065992,2714.2,2714.1,0.55191603]
[1646876216867,1.59065992,2714.2,2714.1,0.55191603]
[1646876217266,4.09065992,2714.2,2714.1,0.55191603]
[1646876217665,5.09065992,2714.2,2714.1,0.55191603]
[1646876217866,2.45191,2714.2,2714.1,0.55191603]
[1646876218265,1.45191,2714.2,2714.1,0.55191603]
[1646876219505,1.4864692,2714.2,2714.1,0.55191603]
[1646876220413,0.9564692,2714.2,2714.1,0.55191603]
[1646876221614,1.2564692,2714.2,2714.1,0.55191603]
[1646876223356,4.7564692,2714.2,2714.1,0.07409746]
[1646876223555,5.2864692,2714.2,2714.1,0.07409746]
[1646876223755,13.6552692,2714.2,2714.1,0.07409746]
[1646876224556,10.18290633,2714.2,2714.1,0.07409746]
[1646876225163,7.3688,2714.2,2714.1,0.07409746]
[1646876225360,8.3688,2714.2,2714.1,0.07409746]
[1646876225761,9.29071,2714.2,2714.1,0.07409746]
[1646876225962,9.82071,2714.2,2714.1,0.07409746]
[1646876226419,10.12071,2714.2,2714.1,0.07409746]
[1646876227419,8.82071,2714.2,2714.1,0.07409746]
[1646876227618,9.82071,2714.2,2714.1,0.07409746]
[1646876228725,13.62071,2714.2,2714.1,0.07409746]
[1646876231560,10.12071,2714.2,2714.1,0.07409746]
[1646876232359,3.2,2714.1,2713.7,0.00347184]
[1646876232561,7.8988,2714.0,2713.6,0.01936]
[1646876232760,0.92219,2713.9,2713.6,0.01936]
[1646876232962,7.8988,2713.8,2713.7,0.00347184]
[1646876233162,8.1988,2713.8,2713.7,0.00347184]
[1646876233360,9.1988,2713.8,2713.7,0.00347184]
[1646876233812,9.1988,2713.8,2713.5,0.04030464]
[1646876234002,0.99798116,2713.6,2713.5,0.04030464]
[1646876234202,1.82798116,2713.6,2713.5,1.56716562]
[1646876234601,9.19678116,2713.6,2713.5,1.56716562]
[1646876237656,9.19678116,2713.6,2713.5,1.51716562]
[1646876237856,10.11889336,2713.6,2713.4,0.00347466]
[1646876238055,11.96312336,2713.6,2713.4,0.00347466]
[1646876238658,11.96312336,2713.6,2713.3,0.014001]
[1646876238659,0.92208,2713.5,2713.3,0.014001]
[1646876238860,7.8988,2713.4,2713.3,0.014001]
[1646876239662,7.8988,2713.4,2713.2,0.10489378]
[1646876240060,7.8988,2713.4,2713.2,0.1085051]
[1646876241065,7.8988,2713.4,2713.2,0.10489378]
[1646876241319,7.8988,2713.4,2713.2,0.10850513]
[1646876242108,7.8988,2713.4,2713.2,0.10489378]
[1646876242508,7.8988,2713.4,2713.2,0.10835935]
[1646876243312,7.8988,2713.4,2713.2,0.10489378]
[1646876243511,7.94860153,2713.4,2713.2,0.10489378]
[1646876243711,7.94860153,2713.4,2713.2,0.10835935]
[1646876244312,0.02238785,2713.3,2713.2,0.10835935]
[1646876244712,0.02238785,2713.3,2713.2,0.10489378]
[1646876244915,0.02238785,2713.3,2713.2,0.10835935]
[1646876245159,6.75674471,2713.4,2713.2,0.10835935]
[1646876245560,1.0,2713.3,2713.2,0.10835935]
[1646876245760,6.78483318,2713.3,2713.2,0.10489378]
[1646876245962,6.78483318,2713.3,2713.2,0.10836919]
[1646876246261,8.29345508,2713.3,2713.2,0.10836919]
[1646876246465,8.82345508,2713.3,2713.2,0.10836919]
[1646876247063,9.82345508,2713.3,2713.2,0.10489378]
[1646876247263,9.82345508,2713.3,2713.2,0.0509936]
[1646876247665,9.82345508,2713.3,2712.7,0.01750673]
[1646876247666,2.0,2713.1,2712.7,0.01750673]
[1646876247866,2.0,2713.1,2712.7,0.03648273]
[1646876247867,10.73719958,2713.0,2712.7,0.03648273]
[1646876248068,0.05030692,2712.9,2712.7,0.03648273]
[1646876248263,6.31483318,2712.8,2712.7,0.04515784]
[1646876248662,7.4250722,2712.8,2712.7,0.04515784]
[1646876248914,7.4250722,2712.8,2712.5,0.05576112]
[1646876248915,2.75519325,2712.6,2712.5,0.05576112]
[1646876249113,2.75519325,2712.6,2712.2,0.01857872]
[1646876249114,4.5452299,2712.5,2712.2,0.01857872]
[1646876249312,2.6,2712.3,2712.0,0.03715744]
[1646876249511,6.31483318,2712.2,2712.0,0.03715744]
[1646876249710,7.31483318,2712.2,2712.1,0.04263176]
[1646876249912,1.7,2712.1,2711.9,0.09947552]
[1646876250117,6.31483318,2712.0,2711.9,0.09947552]
[1646876250313,7.76025011,2712.0,2711.9,0.09947552]
[1646876250514,9.68299011,2712.0,2711.7,0.07302328]
[1646876250716,9.98299011,2712.0,2711.7,0.07302328]
[1646876250913,9.98299011,2712.0,2711.7,0.02587056]
[1646876251517,0.92275,2711.9,2711.7,0.02587056]
[1646876251719,6.31483318,2711.8,2711.7,0.02587056]
[1646876252117,6.61483318,2711.8,2711.7,0.02587056]
[1646876252560,2.0,2711.7,2711.6,0.01316188]
[1646876252762,11.81483318,2711.7,2711.6,0.01316188]
[1646876252958,8.31483318,2711.7,2711.6,0.01316188]
[1646876253261,8.31483318,2711.7,2711.6,0.02632376]
[1646876253262,11.16051318,2711.7,2711.6,0.02632376]
[1646876253461,12.08339318,2711.7,2711.6,0.02632376]
[1646876253658,12.38339318,2711.7,2711.6,0.02632376]
[1646876253860,1.17462966,2711.6,2711.5,0.02795328]
[1646876254063,7.48946284,2711.6,2711.5,0.02795328]
[1646876254261,7.48946284,2711.6,2711.0,0.10363888]
[1646876254262,1.8458673,2711.3,2711.0,0.10363888]
[1646876254470,1.8458673,2711.3,2710.9,0.02393536]
[1646876254471,2.4,2711.0,2710.9,0.02393536]
[1646876254659,8.71483318,2711.0,2710.9,0.1002632]
[1646876254863,10.99845003,2711.0,2710.5,0.13006716]
[1646876255062,0.9232,2710.9,2710.5,0.13006716]
[1646876255270,6.31483318,2710.8,2710.5,0.13006716]
[1646876255467,9.38433318,2710.8,2710.5,0.13006716]
[1646876255667,11.30753318,2710.8,2710.5,0.13006716]
[1646876255869,1.84659,2710.6,2710.3,0.01620214]
[1646876256068,8.31483318,2710.5,2710.3,0.0698836]
[1646876256322,8.31483318,2710.5,2710.2,0.04201348]
[1646876256323,2.6,2710.3,2710.2,0.04201348]
[1646876256511,2.6,2710.3,2709.9,0.04306388]
[1646876256512,2.1,2710.2,2709.9,0.04306388]
[1646876256708,6.31483318,2710.1,2709.9,0.04306388]
[1646876256906,6.31483318,2710.1,2709.7,0.0606838]
[1646876256907,0.53,2710.0,2709.7,0.0606838]
[1646876257108,7.48483318,2709.9,2709.4,0.00612716]
[1646876257309,0.53,2709.8,2709.5,0.03370448]
[1646876257509,5.78483318,2709.7,2709.5,0.12373096]
[1646876257914,5.78483318,2709.7,2709.6,1.89787979]
[1646876258108,5.78483318,2709.7,2709.6,0.3691]
[1646876258509,4.67373318,2709.7,2709.6,1.52874316]
[1646876258710,4.67373318,2709.7,2709.6,8.02874316]
[1646876258909,4.67373318,2709.7,2709.6,1.89784316]
[1646876259109,5.67373318,2709.7,2709.6,1.89784316]
[1646876259311,5.67373318,2709.7,2709.5,0.12373096]
[1646876259512,3.49026931,2709.6,2709.5,0.03418144]
[1646876259716,1.7,2709.5,2709.4,0.02178968]
[1646876259909,3.15348,2709.5,2709.4,0.02178968]
[1646876260164,3.46437938,2709.4,2709.0,0.0427157]
[1646876260365,3.46437938,2709.4,2708.6,0.02497052]
[1646876260366,3.5,2709.1,2708.6,0.02497052]
[1646876260568,4.03,2709.0,2708.6,0.02497052]
[1646876260868,4.03,2709.0,2707.6,0.01832016]
[1646876260869,3.7,2708.8,2707.6,0.01832016]
[1646876261070,0.92188703,2707.7,2707.6,0.03079448]
[1646876261264,4.42188703,2707.7,2707.6,0.03079448]
[1646876261462,9.39562021,2707.7,2707.3,0.01635602]
[1646876261665,9.39562021,2707.7,2707.0,0.0788548]
[1646876261666,6.78042163,2707.7,2707.0,0.0788548]
[1646876261864,6.6566792,2707.6,2707.1,0.09712216]
[1646876262061,0.924412,2707.3,2707.1,0.09712216]
[1646876262262,5.20373318,2707.2,2707.0,0.0264228]
[1646876262460,5.50373318,2707.2,2707.0,0.03771608]
[1646876262661,5.50373318,2707.2,2706.7,0.11024774]
[1646876262868,5.50373318,2707.2,2706.6,0.0034804]
[1646876262869,6.621,2706.8,2706.6,0.0034804]
[1646876263061,0.018018,2706.8,2706.6,0.0519052]
[1646876263268,3.7753,2706.6,2705.9,0.05708167]
[1646876263471,3.7753,2706.6,2705.9,0.13472231]
[1646876263472,3.5,2706.5,2705.9,0.13472231]
[1646876263663,6.621,2706.0,2705.9,0.13472231]
[1646876263911,2.7,2705.7,2705.2,10.01600265]
[1646876264114,2.7,2705.7,2705.2,0.06351992]
[1646876264115,8.23330189,2705.6,2705.2,0.06351992]
[1646876264311,8.23330189,2705.6,2705.1,0.0623646]
[1646876264312,1.8,2705.2,2705.1,0.0623646]
[1646876264508,11.53665424,2705.2,2705.1,0.0623646]
[1646876264712,11.53665424,2705.2,2705.1,0.03929988]
[1646876264908,11.53665424,2705.2,2704.5,0.01718967]
[1646876264909,0.05192584,2705.1,2704.8,0.04173292]
[1646876265115,0.3,2705.2,2705.1,0.25533484]
[1646876265313,5.79330001,2705.2,2705.1,0.25533484]
[1646876265519,0.30040076,2706.1,2705.1,0.25533484]
[1646876265717,0.25,2706.1,2705.1,0.25533484]
[1646876265917,0.1922138,2706.4,2705.1,0.25533484]
[1646876266116,0.25,2706.2,2705.3,3.0]
[1646876266315,0.014001,2706.6,2705.6,3.0]
[1646876266517,0.014001,2706.6,2705.7,0.05137489]
[1646876266816,0.25,2706.5,2705.7,0.05137489]
[1646876267029,0.19179787,2707.0,2705.7,0.05137489]
[1646876267030,0.25,2706.4,2705.7,0.05137489]
[1646876267222,0.78,2707.3,2705.8,3.31274036]
[1646876267223,1.0,2706.6,2705.8,3.31274036]
[1646876267416,0.25,2707.3,2706.1,3.0]
[1646876267662,0.00244783,2707.7,2706.6,3.0]
[1646876267864,0.00244783,2707.7,2706.9,3.0]
[1646876268063,0.25,2707.6,2707.2,3.0]
[1646876268361,1.2761,2708.0,2707.5,3.0]
[1646876268362,0.00367341,2707.7,2707.5,3.0]
[1646876268565,0.19168176,2708.7,2707.7,3.7]
[1646876268760,0.19168176,2708.7,2708.0,3.0]
[1646876268963,0.25,2708.6,2708.1,3.58132936]
[1646876269163,0.25,2708.6,2708.2,0.53]
[1646876269361,0.25,2708.6,2708.1,0.05132936]
[1646876269563,0.25,2708.6,2707.5,0.03656573]
[1646876269761,0.25,2708.6,2707.5,0.03509504]
[1646876270366,0.95173355,2707.9,2707.5,0.03509504]
[1646876270670,0.25,2707.8,2707.5,0.03509504]
[1646876270872,1.0,2707.6,2707.5,0.03509504]
[1646876271076,1.0,2707.6,2706.4,0.0299592]
[1646876271077,3.7,2707.4,2706.5,0.00147069]
[1646876271372,3.7,2707.4,2705.6,0.03048464]
[1646876271373,1.3,2706.7,2705.6,0.03048464]
[1646876271557,0.018149,2706.0,2705.6,0.03048464]
[1646876271756,7.9168,2705.9,2705.6,0.03048464]
[1646876272253,7.3868,2705.9,2705.6,0.03048464]
[1646876273253,7.3868,2705.9,2705.6,0.03415996]
[1646876274053,0.25,2706.7,2705.6,0.03048464]
[1646876274254,0.53,2707.3,2705.7,0.98374394]
[1646876274454,0.53,2707.3,2705.6,3.53048464]
[1646876274455,0.25,2707.0,2705.6,0.03415996]
[1646876274659,0.25,2707.0,2705.8,0.00146366]
[1646876274856,0.25,2707.0,2705.6,0.03415996]
[1646876274857,0.015231,2706.8,2705.6,0.03415996]
[1646876275060,0.018062,2706.1,2705.6,0.03415996]
[1646876275266,0.018062,2706.1,2705.6,0.03048464]
[1646876275267,0.53,2706.0,2705.6,0.03048464]
[1646876275463,1.06590157,2705.9,2705.6,0.03048464]
[1646876275671,0.53,2705.8,2705.7,0.00491354]
[1646876276064,0.3,2705.8,2705.7,0.00491354]
[1646876276267,1.06590157,2705.9,2705.7,0.00491354]
[1646876276564,1.59590157,2705.9,2705.6,0.03048464]
[1646876276765,0.1392,2706.6,2705.7,3.71285273]
[1646876276766,0.25,2706.6,2705.7,3.71285273]
[1646876276970,2.05712237,2706.7,2705.9,3.0]
[1646876277166,0.25,2707.0,2706.7,3.7]
[1646876277365,0.25,2707.0,2706.6,0.011939]
[1646876277765,0.25,2707.0,2706.3,0.01247859]
[1646876277766,0.88129171,2706.7,2706.3,0.01247859]
[1646876277965,0.88129171,2706.7,2706.4,0.53]
[1646876278365,0.88129171,2706.7,2706.2,0.00458421]
[1646876278820,1.18712571,2706.7,2706.2,0.00458421]
[1646876279014,1.18712571,2706.7,2705.8,0.00146366]
[1646876279219,1.0,2706.4,2705.6,0.03048464]
[1646876279418,0.25,2706.2,2705.6,0.03048464]
[1646876279627,0.53,2706.1,2705.0,0.01525084]
[1646876279817,1.0,2705.5,2705.2,0.03733664]
[1646876280030,1.0,2705.5,2704.1,0.1043954]
[1646876280031,4.427917,2705.4,2704.1,0.1043954]
[1646876280228,4.427917,2705.4,2704.3,0.06527508]
[1646876280229,0.006394,2704.8,2704.3,0.06527508]
[1646876280424,0.006394,2704.8,2703.6,0.05095322]
[1646876280425,7.3913,2704.7,2703.6,0.05095322]
[1646876280623,7.3913,2704.7,2702.7,0.86969437]
[1646876280624,0.25,2704.1,2702.7,0.86969437]
[1646876280830,6.621,2703.7,2701.3,0.02608248]
[1646876281024,6.621,2703.7,2701.0,0.06024808]
[1646876281025,0.19195883,2702.0,2701.0,0.06024808]
[1646876281231,6.621,2702.3,2700.7,0.05927518]
[1646876281232,6.621,2701.2,2700.7,0.05927518]
[1646876281428,0.55,2702.3,2700.7,0.02878468]
[1646876281429,0.25,2701.5,2700.7,0.02878468]
[1646876281631,0.25,2701.5,2700.6,0.06352364]
[1646876281632,6.621,2700.8,2700.1,0.01202123]
[1646876281824,6.621,2700.8,2699.9,2.21704866]
[1646876281825,6.621,2700.3,2699.9,2.21704866]
[1646876282027,6.621,2700.8,2700.7,0.06318788]
[1646876282228,4.36157241,2700.8,2700.7,0.06318788]
[1646876282430,4.36157241,2700.8,2700.7,0.06656308]
[1646876282431,1.04516468,2700.8,2700.7,0.06656308]
[1646876282669,0.04865734,2701.5,2700.7,0.1099252]
[1646876282887,0.53,2702.0,2700.7,0.1099252]
[1646876283075,0.25,2702.2,2700.8,0.25]
[1646876283076,3.5,2701.9,2700.8,0.25]
[1646876283271,0.5,2702.2,2700.8,3.75]
[1646876283474,0.5,2702.2,2700.9,0.53]
[1646876283674,0.5,2702.2,2700.8,0.25145753]
[1646876283675,0.25,2702.0,2700.8,0.25145753]
[1646876283873,0.25,2702.0,2700.8,0.31802061]
[1646876284177,3.5,2702.7,2700.8,0.31802061]
[1646876284374,0.005834,2702.1,2701.4,0.01260309]
[1646876284576,0.005834,2702.1,2701.0,3.50145753]
[1646876284777,1.73454,2702.0,2700.8,0.31802061]
[1646876284978,0.005834,2700.9,2700.8,4.07741077]
[1646876285182,0.005876,2700.9,2700.8,1.10595324]
[1646876285376,1.07266913,2702.0,2701.7,0.66699204]
[1646876285578,0.01285916,2702.5,2701.8,0.53]
[1646876285778,0.25,2703.6,2701.9,1.0]
[1646876285983,0.25,2703.6,2702.2,3.01220013]
[1646876286177,2.472,2704.6,2702.3,4.03]
[1646876286178,7.3995,2703.5,2702.3,4.03]
[1646876286414,0.5,2703.2,2702.6,3.0]
[1646876286615,0.5,2703.2,2703.1,6.621]
[1646876286819,0.5,2703.2,2702.7,0.53]
[1646876287016,0.5,2703.2,2702.7,0.63033384]
[1646876287017,0.007863,2702.8,2702.7,0.63033384]
[1646876287220,0.007863,2702.8,2702.7,0.10033384]
[1646876287221,0.012026,2702.8,2702.7,0.10033384]
[1646876287416,0.5,2703.2,2702.7,0.10033384]
[1646876287417,0.87078808,2703.2,2702.7,0.10033384]
[1646876287815,0.012665,2703.1,2702.7,0.10033384]
[1646876288018,7.3995,2703.5,2702.7,0.10033384]
[1646876288216,7.3995,2703.5,2702.7,0.63033384]
[1646876288617,7.3995,2703.5,2702.7,0.10033384]
[1646876289028,1.1451519,2702.9,2702.7,0.10033384]
[1646876289227,1.1451519,2702.9,2702.7,0.01819056]
[1646876289228,7.2,2702.8,2702.7,0.01819056]
[1646876289430,7.2,2702.8,2702.0,0.00145753]
[1646876289431,3.7,2702.7,2702.0,0.00145753]
[1646876289625,3.7,2702.7,2701.7,0.0161792]
[1646876289626,3.0,2702.3,2701.7,0.0161792]
[1646876289924,3.0,2702.3,2701.0,0.0295946]
[1646876289925,3.7,2701.7,2701.0,0.0295946]
[1646876290200,3.7,2701.2,2700.6,0.02734496]
[1646876290394,3.020014,2701.3,2700.6,0.02734496]
[1646876290395,7.98007034,2701.1,2700.6,0.04623104]
[1646876290692,7.3995,2701.1,2700.6,0.04623104]
[1646876291392,1.1744,2702.7,2700.7,3.0]
[1646876291393,0.011667,2701.4,2700.7,3.0]
[1646876291592,0.011667,2702.2,2701.1,3.7]
[1646876291894,4.6744,2702.7,2701.8,0.005834]
[1646876291895,1.1744,2702.7,2701.8,0.005834]
[1646876292102,0.1916891,2703.4,2701.9,3.7]
[1646876292294,1.03067622,2703.9,2702.1,3.0]
[1646876292494,1.03067622,2703.9,2702.9,0.005834]
[1646876292692,3.69163951,2704.8,2702.9,0.450834]
[1646876292897,3.5,2704.8,2702.9,0.450834]
[1646876293092,97.787586,2704.7,2702.9,0.450834]
[1646876293293,0.01591,2704.1,2702.5,0.00347078]
[1646876293496,0.5,2703.4,2702.5,0.00347078]
[1646876293693,0.01933,2703.0,2702.5,0.00347078]
[1646876293910,1.18524603,2701.8,2701.3,0.01213568]
[1646876294119,0.01933,2703.0,2701.3,0.01213568]
[1646876294120,23.632129,2702.9,2701.3,0.01213568]
[1646876294321,3.5,2702.8,2701.3,0.01213568]
[1646876294624,0.020708,2701.5,2701.3,0.01213568]
[1646876294820,0.020708,2701.5,2701.3,0.02427136]
[1646876294821,1.6,2701.5,2701.3,0.02427136]
[1646876295020,0.04688435,2701.4,2701.3,0.02427136]
[1646876295218,3.99188435,2701.4,2701.2,0.0270016]
[1646876295421,0.0417662,2701.2,2700.6,0.02734496]
[1646876295621,3.0,2701.0,2700.2,0.0014483]
[1646876295823,0.05234348,2700.8,2700.2,0.0107324]
[1646876296019,7.4038,2700.7,2700.2,0.0107324]
[1646876296224,0.04877458,2700.6,2700.2,0.0107324]
[1646876296420,7.4038,2700.5,2700.2,0.0107324]
[1646876296620,3.5,2700.4,2700.2,0.0107324]
[1646876296827,8.35106055,2700.3,2699.7,0.15966864]
[1646876297023,4.94826017,2700.3,2699.7,0.15966864]
[1646876297230,4.64826017,2700.3,2699.7,0.15966864]
[1646876297420,0.011667,2701.4,2700.3,3.27351953]
[1646876297421,0.5,2700.9,2700.3,3.27351953]
[1646876297670,0.19190925,2702.2,2700.4,3.945]
[1646876297865,0.015221,2702.3,2700.5,3.7]
[1646876298064,0.015221,2702.3,2700.6,3.5014483]
[1646876298065,0.5,2700.8,2700.6,3.5014483]
[1646876298267,0.5,2700.8,2700.7,0.0014483]
[1646876298470,0.5,2700.8,2700.7,3.5]
[1646876298666,0.5,2700.8,2700.6,0.740991]
[1646876298869,0.015221,2702.3,2700.7,3.5]
[1646876299067,0.015221,2702.3,2700.7,3.945]
[1646876299068,0.0024907,2702.1,2700.7,3.945]
[1646876299268,0.0024907,2702.1,2700.8,0.0014483]
[1646876299874,0.015221,2702.3,2700.6,0.0014483]
[1646876299875,0.97143534,2702.2,2700.6,0.0014483]
[1646876300072,3.5,2702.1,2700.7,0.0014483]
[1646876300271,3.5,2702.1,2700.4,0.0014483]
[1646876300272,3.50249134,2702.1,2700.4,0.0014483]
[1646876300476,0.04806608,2702.0,2700.4,0.0014483]
[1646876300677,1.41941608,2702.0,2700.4,0.0014483]
[1646876300875,0.90718172,2701.4,2700.4,0.0014483]
[1646876301076,1.20718172,2701.4,2700.2,0.005834]
[1646876301522,0.05274989,2701.8,2700.4,0.01452716]
[1646876301712,0.3,2701.5,2700.4,0.01597546]
[1646876301910,0.3,2701.5,2700.4,0.01452716]
[1646876302116,3.51241,2701.8,2700.4,0.01452716]
[1646876302117,0.01241,2701.8,2700.4,0.45952716]
[1646876302315,0.01241,2701.8,2700.4,3.4464483]
[1646876302519,0.01241,2701.8,2701.7,1.16111272]
[1646876302717,7.4041,2701.9,2701.4,0.50560123]
[1646876302917,7.4041,2701.9,2701.5,0.445]
[1646876302918,6.29423938,2701.9,2701.5,0.445]
[1646876303216,6.29423938,2701.9,2701.6,3.0]
[1646876303416,6.29423938,2701.9,2701.7,0.445]
[1646876304019,1.00362995,2702.1,2701.8,3.7]
[1646876304220,2.995e-05,2702.1,2701.9,0.445]
[1646876304420,2.995e-05,2702.1,2702.0,0.445]
[1646876304820,0.011667,2702.8,2702.0,0.445]
[1646876305064,1.08452944,2702.8,2702.0,0.445]
[1646876305260,0.04961528,2703.7,2703.0,0.55137779]
[1646876305465,0.92552,2704.1,2703.0,0.55137779]
[1646876305466,7.3982,2703.6,2703.0,0.55137779]
[1646876305866,7.3982,2703.6,2703.1,0.445]
[1646876306767,7.3982,2703.6,2703.0,1.55137779]
[1646876306969,7.3982,2703.6,2703.1,3.0]
[1646876307167,7.3982,2703.6,2703.1,0.445]
[1646876307768,7.3982,2703.6,2703.1,0.51826669]
[1646876307968,0.011667,2704.2,2703.3,3.0]
[1646876308168,0.011667,2704.6,2703.8,3.0]
[1646876308369,0.011667,2705.0,2704.3,3.0]
[1646876308569,0.011667,2705.4,2704.4,0.445]
[1646876308810,0.011667,2705.4,2704.5,0.08160232]
[1646876308811,1.12482465,2705.4,2704.5,0.08160232]
[1646876309015,0.01394,2705.1,2704.5,0.08160232]
[1646876309316,0.01394,2705.1,2704.4,0.996]
[1646876309317,0.015064,2704.6,2704.4,0.996]
[1646876309511,0.015064,2704.6,2704.1,0.06926902]
[1646876309717,0.015064,2704.6,2703.9,0.07642316]
[1646876309912,1.19268841,2704.0,2703.9,0.07642316]
[1646876310121,0.015064,2704.6,2703.9,0.07642316]
[1646876310316,0.0035469,2704.9,2703.9,0.07642316]
[1646876310514,0.0035469,2704.9,2704.0,0.445]
[1646876310917,8.3943,2705.0,2704.0,0.445]
[1646876311119,2.7749258,2706.8,2704.0,0.445]
[1646876311120,0.011667,2705.6,2704.9,0.00931969]
[1646876311320,0.5,2706.4,2705.5,3.0]
[1646876311321,0.511667,2706.4,2705.5,3.0]
[1646876311520,4.6854,2708.1,2705.6,0.445]
[1646876311726,3.5,2708.1,2706.3,0.005834]
[1646876311916,0.05171482,2708.6,2706.4,0.445]
[1646876311917,0.015477,2707.7,2706.4,0.445]
[1646876312117,0.0176,2707.5,2706.5,0.09001645]
[1646876312320,0.013992,2707.3,2706.3,0.005834]
[1646876312584,0.0035461,2707.0,2706.3,0.005834]
[1646876312967,0.0035461,2707.0,2706.4,0.08643371]
[1646876313165,0.0035461,2707.0,2705.7,0.0014483]
[1646876313166,9.007496,2706.9,2705.7,0.0014483]
[1646876313367,3.511667,2707.1,2705.7,0.0014483]
[1646876313368,0.016623,2706.5,2705.7,0.0014483]
[1646876313568,0.018902,2706.1,2705.6,0.07006629]
[1646876313770,0.013935,2706.3,2705.6,0.07006629]
[1646876313969,0.01496192,2706.8,2705.9,0.07991281]
[1646876314370,0.01496192,2706.8,2705.6,0.005834]
[1646876314371,0.01496192,2706.8,2705.6,0.0072823]
[1646876314571,0.014358,2706.6,2705.6,0.08195426]
[1646876314770,0.014358,2706.6,2705.6,0.08050596]
[1646876314972,0.014358,2706.6,2705.6,0.450834]
[1646876315274,0.014358,2706.6,2705.7,0.08440556]
[1646876315275,0.00223984,2706.5,2705.7,0.08440556]
[1646876315471,1.00223984,2706.5,2705.7,0.08440556]
[1646876315873,1.0,2706.5,2705.7,0.08440556]
[1646876316310,0.00223984,2706.2,2705.9,0.0900025]
[1646876316513,3.984e-05,2706.2,2706.0,0.51547652]
[1646876316712,3.984e-05,2706.2,2706.1,1.0]
[1646876316911,3.984e-05,2706.2,2706.1,1.445]
[1646876317111,1.0,2706.5,2706.1,1.57059941]
[1646876317311,1.0,2706.5,2706.2,0.07078656]
[1646876317513,1.84811,2708.1,2706.3,0.08008052]
[1646876317717,2.49706136,2708.4,2706.5,0.07571761]
[1646876317718,0.014616,2707.5,2706.5,0.07571761]
[1646876317917,2.45172057,2708.4,2706.6,0.445]
[1646876317918,0.018011,2707.8,2706.6,0.445]
[1646876318112,0.011667,2707.6,2706.7,3.5014483]
[1646876318312,0.011667,2707.6,2706.9,1.04035394]
[1646876318517,1.17985392,2707.8,2707.0,0.51876518]
[1646876318518,0.018011,2707.8,2707.0,0.51876518]
[1646876318717,0.018011,2707.8,2707.3,1.0]
[1646876318918,0.018011,2707.8,2707.4,0.07358698]
[1646876319117,1.1302,2708.7,2707.4,0.07358698]
[1646876319118,0.011667,2708.0,2707.4,0.07358698]
[1646876319317,0.012487,2707.8,2707.4,0.07503528]
[1646876319518,0.012487,2707.8,2707.4,0.07358698]
[1646876320078,0.99650678,2707.7,2707.4,0.07358698]
[1646876320269,0.99650678,2707.7,2706.6,0.0014483]
[1646876320270,0.014621,2707.5,2706.6,0.0014483]
[1646876320471,0.99650678,2707.7,2706.3,0.09451269]
[1646876320472,0.017436,2707.1,2706.3,0.005834]
[1646876320668,0.01483,2706.8,2705.5,0.0014483]
[1646876320869,0.014199,2706.6,2705.5,0.0014483]
[1646876321166,0.89973856,2706.4,2705.5,0.0014483]
[1646876321366,0.89973856,2706.4,2705.4,0.96289284]
[1646876321566,0.012841,2706.3,2705.5,0.08751125]
[1646876322367,0.00340215,2706.2,2705.5,0.08751125]
[1646876322667,0.012965,2706.1,2705.3,0.08897621]
[1646876322865,0.012965,2706.1,2705.3,0.08752791]
[1646876323265,0.012965,2706.1,2705.6,0.001923]
[1646876323468,0.012965,2706.1,2705.3,0.08752791]
[1646876323917,0.3,2705.7,2705.3,0.08752791]
[1646876324318,0.012965,2706.1,2705.3,3.58752791]
[1646876324517,0.012965,2706.1,2705.2,0.7854]
[1646876324518,0.012841,2706.3,2705.4,0.07454731]
[1646876324819,2.45172057,2707.0,2705.4,0.07454731]
[1646876324820,2.46338757,2707.0,2705.9,3.0]
[1646876325019,2.46338757,2707.0,2706.1,0.06909665]
[1646876325020,7.3898,2706.9,2706.1,0.06909665]
[1646876325222,7.3898,2706.9,2706.2,0.445]
[1646876325626,7.3898,2706.9,2706.3,0.06891102]
[1646876325824,1.16689404,2706.7,2706.3,0.06891102]
[1646876326222,1.46689404,2706.7,2706.3,0.06891102]
[1646876326426,0.30353709,2706.7,2706.3,0.06891102]